bitfinex-derivatives/quotes_SOLF0:USTF0_20251219
["timestamp","ask_amount","ask_price","bid_price","bid_amount"]
[1766169753766,3.40175099,124.04,123.98,23.43]
[1766169754355,23.97,124.06,123.98,23.43]
[1766169754554,0.05618896,124.03,124.01,0.05977841]
[1766169755257,3.40175099,124.07,124.01,23.82977841]
[1766169756363,0.06117132,124.05,124.01,23.82977841]
[1766169756668,138.6001,124.12,124.01,23.82977841]
[1766169756859,29.14175099,124.11,124.01,23.77]
[1766169757061,25.74,124.08,124.01,23.77]
[1766169757363,3.40175099,124.09,124.01,23.77]
[1766169757749,0.06138219,124.06,124.04,0.05962874]
[1766169758163,160.5081,124.11,124.04,23.82962874]
[1766169758164,7.2559,124.11,124.04,23.82962874]
[1766169758366,36.39765099,124.11,124.04,23.82962874]
[1766169759164,0.05963661,124.09,124.04,23.82962874]
[1766169760268,47.64,124.12,124.04,23.82962874]
[1766169760564,36.39525099,124.15,124.04,27.17175099]
[1766169760767,84.03525099,124.15,124.04,27.17175099]
[1766169761363,84.03525099,124.15,124.08,23.83163107]
[1766169761768,36.39525099,124.15,124.08,23.83163107]
[1766169762075,84.03525099,124.15,124.08,23.83163107]
[1766169762265,36.39525099,124.15,124.08,23.83163107]
[1766169762469,0.05422639,124.13,124.08,23.83163107]
[1766169763571,0.00422639,124.13,124.08,23.83163107]
[1766169763777,0.00422639,124.13,124.08,27.23338206]
[1766169764671,0.00422639,124.13,124.09,23.77]
[1766169766366,0.00422639,124.13,124.09,31.0266]
[1766169766565,0.00422639,124.13,124.1,23.77]
[1766169766763,0.58523,124.18,124.1,27.17175099]
[1766169767774,0.05614457,124.15,124.13,0.05775164]
[1766169767975,0.58523,124.18,124.13,0.05775164]
[1766169768175,0.58523,124.18,124.13,23.82775164]
[1766169769178,0.00421935,124.17,124.13,23.82775164]
[1766169774886,29.14597034,124.17,124.13,0.05775164]
[1766169776685,36.39847034,124.17,124.13,0.05775164]
[1766169777584,32.99671935,124.17,124.13,0.05775164]
[1766169778900,0.00421935,124.17,124.13,0.05775164]
[1766169781687,7.25631935,124.17,124.13,0.05775164]
[1766169783594,32.993,124.16,124.1,23.77]
[1766169784696,0.05816429,124.14,124.12,0.05341327]
[1766169786498,25.75,124.17,124.12,0.05341327]
[1766169787398,0.05649309,124.16,124.12,0.05341327]
[1766169788991,0.05649309,124.16,124.12,24.10341327]
[1766169790199,0.58523,124.18,124.12,24.10341327]
[1766169791291,0.58523,124.18,124.14,24.05]
[1766169791686,26.33523,124.18,124.11,24.05]
[1766169792197,26.33523,124.18,124.13,0.05500745]
[1766169793208,33.58693,124.18,124.13,0.05500745]
[1766169793890,26.33523,124.18,124.13,0.05500745]
[1766169794700,33.58693,124.18,124.13,0.05500745]
[1766169795998,25.75,124.17,124.13,0.05500745]
[1766169797103,25.75,124.17,124.09,71.67]
[1766169797997,0.05153497,124.14,124.12,0.06168666]
[1766169799901,0.05153497,124.14,124.12,0.00168666]
[1766169799902,25.80153497,124.14,124.12,0.00168666]
[1766169800612,25.80153497,124.14,124.06,24.05]
[1766169800797,25.75,124.14,124.06,24.05]
[1766169801706,0.05234178,124.11,124.09,0.05761683]
[1766169805108,0.05234178,124.11,124.06,24.05]
[1766169806309,0.05234178,124.11,124.07,0.06117066]
[1766169810108,25.04234178,124.11,124.07,0.06117066]
[1766169811611,32.29814178,124.11,124.07,0.06117066]
[1766169811819,24.99,124.09,124.01,71.0]
[1766169812219,7.2574,124.08,124.01,71.0]
[1766169812419,32.2474,124.08,124.01,71.0]
[1766169812821,0.05300278,124.06,124.03,0.05362013]
[1766169813924,32.30160278,124.06,124.03,0.00362013]
[1766169815722,0.00300278,124.06,124.03,23.84362013]
[1766169818316,0.00300278,124.06,124.03,0.00362013]
[1766169827534,24.35,124.05,123.97,78.7033]
[1766169828031,24.35,124.05,123.98,23.84]
[1766169828730,0.05439894,124.03,124.0,0.06098898]
[1766169830224,24.40439894,124.03,124.0,0.06098898]
[1766169830531,0.05439894,124.03,124.0,0.06098898]
[1766169831630,24.40439894,124.03,124.0,0.00098898]
[1766169832225,24.35,124.01,123.94,23.84]
[1766169832627,24.35,124.0,123.94,23.84]
[1766169833228,0.06062064,123.98,123.96,0.0569927]
[1766169837233,0.06062064,123.98,123.92,32.51036354]
[1766169838235,0.06062064,123.98,123.94,0.05310126]
[1766169839121,24.41062064,123.98,123.94,0.05310126]
[1766169839323,29.66185134,123.97,123.89,23.84]
[1766169839529,27.75701935,123.95,123.89,23.84]
[1766169839728,27.75701935,123.97,123.89,23.84]
[1766169840233,0.06036215,123.94,123.92,0.05440653]
[1766169841733,31.6128,123.99,123.92,23.89440653]
[1766169841943,3.40701935,124.0,123.92,23.89440653]
[1766169842129,24.35,124.01,123.92,27.24701935]
[1766169842641,24.35,124.01,123.92,28.65086783]
[1766169842934,0.05315997,123.98,123.95,0.06058156]
[1766169845536,0.05315997,123.98,123.95,25.17058156]
[1766169845537,0.00315997,123.98,123.95,25.17058156]
[1766169845734,30.7789,124.06,123.97,25.11]
[1766169846534,30.7789,124.06,123.98,25.11]
[1766169846733,0.0549693,124.03,124.01,0.05582369]
[1766169847337,0.0049693,124.03,124.01,0.05582369]
[1766169851142,0.0049693,124.03,124.01,25.16582369]
[1766169851338,23.52,124.08,124.01,25.16582369]
[1766169852343,0.0599275,124.06,124.01,25.16582369]
[1766169854339,30.7771,124.09,124.01,25.16582369]
[1766169854531,30.7771,124.09,124.01,25.11]
[1766169855244,0.05363473,124.06,124.04,0.06104369]
[1766169857845,78.416,124.11,124.04,25.17104369]
[1766169858544,23.52,124.1,124.04,25.17104369]
[1766169858731,0.05490906,124.08,124.04,25.17104369]
[1766169862132,24.47490906,124.08,124.04,0.06104369]
[1766169863542,7.2581,124.07,124.04,0.06104369]
[1766169863948,24.47490906,124.08,124.04,0.06104369]
[1766169865241,0.05490906,124.08,124.04,0.06104369]
[1766169868455,0.05490906,124.08,124.04,24.20104369]
[1766169870952,0.05490906,124.08,124.04,0.06104369]
[1766169871159,24.47490906,124.08,124.04,0.06104369]
[1766169872662,31.73230906,124.08,124.04,0.06104369]
[1766169873158,24.47490906,124.08,124.04,0.06104369]
[1766169875560,31.73250906,124.08,124.04,0.06104369]
[1766169880858,0.05490906,124.08,124.04,24.14104369]
[1766169884267,26.55166761,124.13,124.05,24.08]
[1766169885369,0.06111294,124.1,124.08,0.05507181]
[1766169888975,0.00111294,124.1,124.08,0.05507181]
[1766169892575,0.00111294,124.1,124.08,24.13507181]
[1766169900190,0.00111294,124.1,124.08,0.05507181]
[1766169901001,24.73111294,124.1,124.04,24.08]
[1766169902192,24.73111294,124.1,124.06,0.05185937]
[1766169902497,24.73111294,124.1,124.01,47.62]
[1766169902498,24.73,124.09,124.02,24.08]
[1766169903500,0.05220795,124.07,124.04,0.05376891]
[1766169903798,24.78220795,124.07,124.04,0.05376891]
[1766169904594,24.78220795,124.07,124.01,24.08]
[1766169905488,32.04020795,124.07,124.01,24.08]
[1766169905688,32.04020795,124.07,124.03,0.05239711]
[1766169908802,25.1,124.06,124.03,0.05239711]
[1766169911593,32.3586,124.06,124.03,0.05239711]
[1766169912703,25.1,124.06,124.03,0.05239711]
[1766169914400,0.05220795,124.07,124.03,24.61239711]
[1766169915797,25.1,124.13,124.03,24.61239711]
[1766169916002,25.1,124.13,124.03,24.56]
[1766169916306,32.3549,124.13,124.06,24.56]
[1766169916696,32.3549,124.13,124.08,0.05632869]
[1766169916903,0.05538445,124.11,124.08,0.05632869]
[1766169922205,23.23,124.1,124.02,24.39]
[1766169923107,0.05749044,124.07,124.05,0.05333639]
[1766169923307,23.23,124.12,124.05,24.44333639]
[1766169923606,23.23,124.12,124.05,24.39]
[1766169924204,0.05747469,124.1,124.07,0.05601851]
[1766169924709,23.28747469,124.1,124.03,24.39]
[1766169924899,23.23,124.09,124.03,24.39]
[1766169925098,23.23,124.09,123.99,24.39]
[1766169925313,23.23,124.07,123.99,24.39]
[1766169925811,0.05926295,124.04,124.02,0.05348658]
[1766169932514,23.28926295,124.04,124.02,0.00348658]
[1766169932713,23.28926295,124.04,123.97,24.39]
[1766169933106,30.54896295,124.04,123.97,24.39]
[1766169933608,30.54896295,124.04,123.99,0.0522782]
[1766169935413,23.28926295,124.04,123.99,0.0522782]
[1766169935905,30.54896295,124.04,123.99,0.0522782]
[1766169936111,23.63,124.03,123.99,0.0522782]
[1766169940615,0.05926295,124.04,123.99,23.6122782]
[1766169942617,7.2578,124.08,124.0,23.56]
[1766169942822,54.8978,124.08,124.0,23.56]
[1766169943330,78.5278,124.08,124.0,23.56]
[1766169943517,30.8881,124.07,124.0,23.56]
[1766169943821,0.05173384,124.05,124.02,0.06128348]
[1766169948025,23.68173384,124.05,123.98,23.56]
[1766169948221,23.63,124.05,123.98,23.56]
[1766169949113,0.05602819,124.03,124.0,0.05712273]
[1766169952332,7.2587,124.06,124.0,23.61712273]
[1766169952826,23.63,124.05,124.0,0.05712273]
[1766169953323,0.05071049,124.04,124.0,0.05712273]
[1766169955633,0.05071049,124.04,124.0,23.61712273]
[1766169957822,0.00071049,124.04,124.0,30.87902273]
[1766169958022,0.00071049,124.04,124.0,23.61712273]
[1766169958227,0.00071049,124.04,124.0,0.05712273]
[1766169958427,0.00071049,124.04,124.0,23.61712273]
[1766169959638,0.00071049,124.04,124.0,30.87902273]
[1766169960934,0.00071049,124.04,124.01,23.56]
[1766169964927,0.00071049,124.04,124.0,0.05712273]
[1766169965127,0.00071049,124.04,124.0,25.07712273]
[1766169968534,0.00071049,124.04,124.0,32.33902273]
[1766169969240,0.00071049,124.04,124.01,25.02]
[1766169973645,0.00071049,124.04,124.01,32.2814]
[1766169974139,0.00071049,124.04,124.01,25.02]
[1766169974346,0.00071049,124.04,124.0,32.33882273]
[1766169976043,0.00071049,124.04,124.0,25.07712273]
[1766169976246,0.00071049,124.04,124.0,0.05712273]
[1766169976441,26.8199197,124.11,124.01,25.02]
[1766169976748,26.8199197,124.11,124.02,25.02]
[1766169977346,0.06088302,124.08,124.05,0.05251701]
[1766169978150,23.48088302,124.08,124.05,0.00251701]
[1766169979252,26.8199197,124.07,124.0,25.02]
[1766169980051,34.0779197,124.07,124.0,25.02]
[1766169980252,0.0609104,124.05,124.02,0.06046784]
[1766169980750,23.4809104,124.05,124.02,0.06046784]
[1766169982653,23.4809104,124.05,123.95,120.47384375]
[1766169982654,26.8808301,124.05,123.98,25.02]
[1766169982853,26.8199197,124.05,123.98,25.02]
[1766169983250,23.42,124.05,123.99,7.2624]
[1766169983455,23.42,124.05,123.98,25.02]
[1766169983456,23.42,124.04,123.98,25.02]
[1766169983664,0.06056939,124.02,124.0,0.05322186]
[1766169985559,27.0499197,124.01,123.94,23.26]
[1766169986648,0.05459087,123.99,123.96,0.06016301]
[1766169988258,27.0499197,123.98,123.91,23.26]
[1766169989359,0.05887837,123.96,123.93,0.05508864]
[1766169989554,27.0499197,124.0,123.93,23.31508864]
[1766169990552,0.05989529,123.98,123.93,23.31508864]
[1766169995961,0.05989529,123.98,123.94,7.2653]
[1766169996160,0.05989529,123.98,123.94,31.3053]
[1766169996556,0.05989529,123.98,123.95,24.04]
[1766170001161,3.3999197,124.06,123.97,27.4399197]
[1766170001468,27.6599197,124.08,123.98,24.04]
[1766170002164,0.05386816,124.04,124.02,0.05267203]
[1766170005565,0.00386816,124.04,124.02,0.05267203]
[1766170005768,47.66,124.09,124.02,0.05267203]
[1766170005769,24.26,124.09,124.02,24.09267203]
[1766170006370,24.26,124.09,124.02,31.35337203]
[1766170006669,24.26,124.09,124.02,24.09267203]
[1766170006872,0.05896507,124.07,124.02,24.09267203]
[1766170010969,31.516,124.11,124.02,24.09267203]
[1766170011176,24.26,124.11,124.04,24.04]
[1766170011874,0.05494119,124.09,124.06,0.05102393]
[1766170013481,27.71486089,124.09,124.06,0.05102393]
[1766170014167,27.71486089,124.09,124.06,0.00102393]
[1766170014374,27.71486089,124.09,124.02,71.68]
[1766170014671,27.71486089,124.09,124.02,24.04]
[1766170014976,34.9179197,124.07,123.99,31.3025]
[1766170015167,34.9179197,124.07,124.0,24.04]
[1766170015370,0.05938632,124.05,124.02,0.05466779]
[1766170021992,24.26,124.09,124.02,24.09466779]
[1766170022188,31.5172,124.09,124.03,24.04]
[1766170023299,24.32138387,124.07,124.05,0.00374414]
[1766170023496,24.32138387,124.07,124.01,24.04]
[1766170023997,31.57948387,124.07,124.01,24.04]
[1766170024294,0.06138387,124.07,124.03,0.05867461]
[1766170024892,0.06138387,124.07,124.03,23.38867461]
[1766170025096,0.00138387,124.07,124.03,23.38867461]
[1766170027499,0.00138387,124.07,124.03,30.64887461]
[1766170027800,0.00138387,124.07,124.04,23.33]
[1766170036604,0.00138387,124.07,124.03,7.31877461]
[1766170037203,0.00138387,124.07,124.03,0.05867461]
[1766170040006,0.00138387,124.07,123.99,7.2622]
[1766170040007,25.16,124.06,124.0,24.27]
[1766170040593,32.4171,124.09,124.01,24.27]
[1766170041003,0.05643224,124.06,124.04,0.05879083]
[1766170041304,32.4158,124.11,124.04,24.32879083]
[1766170041507,32.4158,124.11,124.04,24.27]
[1766170042098,0.05530874,124.09,124.06,0.05230647]
[1766170042306,25.21530874,124.09,124.06,0.05230647]
[1766170044106,0.05530874,124.09,124.06,0.05230647]
[1766170050112,32.4155,124.12,124.06,0.05230647]
[1766170050113,72.78,124.14,124.06,24.32230647]
[1766170050307,25.16,124.13,124.06,24.27]
[1766170050617,32.4147,124.13,124.06,24.27]
[1766170051017,0.05058571,124.11,124.08,0.05395652]
[1766170051819,25.16,124.17,124.09,24.27]
[1766170052207,25.16,124.17,124.06,24.27]
[1766170052907,25.16,124.14,124.1,0.05326359]
[1766170053110,25.16,124.14,124.1,0.00326359]
[1766170054015,25.21,124.13,124.1,0.00326359]
[1766170057421,32.4645,124.13,124.1,0.00326359]
[1766170058618,25.21,124.13,124.1,0.00326359]
[1766170059120,0.05,124.13,124.1,0.00326359]
[1766170064522,23.05,124.13,124.1,0.00326359]
[1766170065220,23.0,124.19,124.1,23.46326359]
[1766170065417,70.62,124.19,124.1,23.46]
[1766170065617,23.0,124.18,124.1,23.46]
[1766170066118,23.0,124.17,124.13,0.00304207]
[1766170066319,23.0,124.15,124.07,23.46]
[1766170066910,23.0,124.14,124.07,30.7178]
[1766170067314,0.05304207,124.12,124.09,0.05447712]
[1766170075330,0.05304207,124.12,124.09,23.51447712]
[1766170077622,23.0,124.15,124.09,23.51447712]
[1766170079935,23.0,124.15,124.09,30.77117712]
[1766170080123,23.0,124.17,124.1,23.46]
[1766170080325,23.0,124.19,124.12,23.51075065]
[1766170080524,23.0,124.19,124.14,0.05575255]
[1766170083535,30.2511,124.19,124.14,0.05575255]
[1766170083737,26.39354734,124.18,124.14,0.05575255]
[1766170084149,23.0,124.18,124.14,0.05575255]
[1766170086245,70.34,124.2,124.14,22.47575255]
[1766170086948,22.72,124.2,124.14,29.72945255]
[1766170087138,22.72,124.2,124.15,22.42]
[1766170087854,22.72,124.24,124.16,22.42]
[1766170088042,26.11354734,124.26,124.19,22.47099966]
[1766170088357,26.11354734,124.26,124.21,0.0575975]
[1766170088646,22.72,124.26,124.21,0.0575975]
[1766170090156,29.9671,124.26,124.21,0.0575975]
[1766170090640,22.72,124.26,124.21,0.0575975]
[1766170092648,29.967,124.26,124.21,0.0575975]
[1766170094740,22.72,124.26,124.21,0.0575975]
[1766170095645,29.9672,124.26,124.21,0.0575975]
[1766170096156,29.9677,124.25,124.21,0.0575975]
[1766170096348,22.72,124.24,124.21,0.0575975]
[1766170098057,29.967,124.26,124.21,0.0575975]
[1766170098855,23.4,124.25,124.21,0.0575975]
[1766170100155,23.4,124.26,124.21,21.4975975]
[1766170100454,70.98,124.26,124.21,21.4975975]
[1766170101050,70.98,124.26,124.21,0.0575975]
[1766170101051,23.4,124.25,124.21,0.0575975]
[1766170102259,23.4,124.24,124.21,0.0575975]
[1766170105347,23.4,124.23,124.16,21.44]
[1766170105554,70.98,124.22,124.16,21.44]
[1766170106158,23.4,124.21,124.14,69.04]
[1766170106357,0.05287088,124.19,124.16,0.05081176]
[1766170107853,0.00287088,124.19,124.16,21.49081176]
[1766170108054,70.98,124.22,124.16,21.49081176]
[1766170110167,23.4,124.22,124.16,28.74341176]
[1766170113564,23.4,124.22,124.17,21.44]
[1766170113766,30.6482,124.24,124.17,21.44]
[1766170114071,30.6482,124.24,124.19,0.05921057]
[1766170114271,28.6086,124.23,124.19,0.05921057]
[1766170114466,28.6086,124.23,124.14,116.2272299]
[1766170114467,21.36,124.22,124.15,7.2528]
[1766170114672,32.0011299,124.22,124.14,23.09]
[1766170115573,0.05202604,124.19,124.17,0.05948826]
[1766170120768,0.00202604,124.19,124.17,30.40138826]
[1766170120968,0.00202604,124.19,124.18,23.09]
[1766170122872,0.00202604,124.19,124.18,23.09]
[1766170129682,0.00202604,124.19,124.17,30.40138826]
[1766170136782,0.00202604,124.19,124.18,23.09]
[1766170140077,21.36,124.26,124.19,30.3404]
[1766170140276,21.36,124.26,124.2,23.09]
[1766170140577,21.36,124.26,124.18,77.9211]
[1766170140881,3.3918299,124.25,124.18,77.9211]
[1766170141186,21.36,124.24,124.2,0.05334392]
[1766170142189,24.7518299,124.23,124.2,0.00334392]
[1766170143090,24.80633015,124.23,124.2,0.00334392]
[1766170143473,32.05503015,124.23,124.2,0.00334392]
[1766170143680,21.36,124.22,124.2,0.00334392]
[1766170144693,20.81,124.21,124.15,68.41]
[1766170145589,20.81,124.2,124.13,20.85]
[1766170145903,20.86195335,124.19,124.16,0.00206763]
[1766170150375,0.05195335,124.19,124.16,0.00206763]
[1766170156093,0.00195335,124.19,124.16,21.79206763]
[1766170159393,20.73195335,124.19,124.16,0.00206763]
[1766170160691,27.98305335,124.19,124.16,0.00206763]
[1766170161085,20.73195335,124.19,124.16,0.00206763]
[1766170161594,20.73195335,124.19,124.12,29.0447]
[1766170162593,27.98305335,124.19,124.14,0.05627398]
[1766170163493,20.73195335,124.19,124.14,0.05627398]
[1766170166295,20.73195335,124.19,124.14,20.99627398]
[1766170167905,20.73195335,124.19,124.14,0.05627398]
[1766170167906,27.98305335,124.19,124.14,0.05627398]
[1766170169302,20.73195335,124.19,124.14,0.05627398]
[1766170169794,0.00195335,124.19,124.14,20.99627398]
[1766170174089,0.00195335,124.19,124.14,0.05627398]
[1766170174294,20.98195335,124.19,124.14,0.05627398]
[1766170175700,20.98,124.18,124.14,0.05627398]
[1766170176608,20.98,124.17,124.11,9.16077235]
[1766170177905,0.05437232,124.15,124.13,0.05269743]
[1766170179503,20.98,124.19,124.13,0.05269743]
[1766170179697,20.98,124.19,124.13,20.59269743]
[1766170180408,0.05918206,124.17,124.13,20.59269743]
[1766170180704,0.05918206,124.17,124.13,0.05269743]
[1766170182902,20.90351969,124.18,124.13,0.05269743]
[1766170185996,20.90351969,124.18,124.13,20.59269743]
[1766170192214,20.98,124.17,124.13,0.05269743]
[1766170192404,20.98,124.17,124.11,1.90567235]
[1766170192802,28.2321,124.17,124.11,1.90567235]
[1766170193113,20.98,124.16,124.11,1.90567235]
[1766170193312,0.06089858,124.15,124.12,0.06014275]
[1766170193811,0.06089858,124.15,124.09,21.12901]
[1766170193812,21.04089858,124.15,124.09,21.12901]
[1766170194011,21.04089858,124.15,124.09,0.58901]
[1766170194610,20.98,124.14,124.09,0.58901]
[1766170194912,20.98,124.14,124.1,0.05274031]
[1766170197713,20.98,124.14,124.09,0.00175031]
[1766170198722,20.98,124.14,124.1,0.00150579]
[1766170199730,28.2339,124.14,124.1,0.00150579]
[1766170200132,20.98,124.13,124.1,0.00150579]
[1766170201519,0.06089858,124.15,124.1,0.00150579]
[1766170201520,21.04089858,124.15,124.1,0.00150579]
[1766170201720,21.04089858,124.15,124.1,20.54150579]
[1766170201721,0.06089858,124.15,124.1,20.54150579]
[1766170202025,0.00089858,124.15,124.11,20.54]
[1766170203221,0.00089858,124.15,124.11,27.7954]
[1766170207427,0.00089858,124.15,124.11,20.54]
[1766170208435,0.00089858,124.15,124.1,0.00150579]
[1766170208741,0.00089858,124.15,124.1,21.51150579]
[1766170209336,0.00089858,124.15,124.12,21.51]
[1766170210437,0.00089858,124.15,124.13,28.7641]
[1766170210640,0.00089858,124.15,124.13,28.82497465]
[1766170211539,22.32,124.2,124.13,28.82497465]
[1766170212052,3.39356155,124.22,124.15,24.90356155]
[1766170212053,22.32,124.22,124.15,24.90356155]
[1766170212540,22.32,124.24,124.15,24.90356155]
[1766170212731,0.06164848,124.2,124.17,21.56628987]
[1766170213336,0.06164848,124.2,124.17,0.05628987]
[1766170214037,0.06164848,124.2,124.17,21.56628987]
[1766170214841,22.32,124.23,124.17,21.56628987]
[1766170215033,54.8471,124.26,124.17,21.56628987]
[1766170215034,22.32,124.25,124.17,21.56628987]
[1766170215228,22.32,124.25,124.17,21.51]
[1766170216043,0.0570364,124.22,124.2,0.0515998]
[1766170216645,22.32,124.25,124.2,0.0515998]
[1766170217843,0.05226804,124.24,124.2,0.0515998]
[1766170218451,0.05226804,124.24,124.2,21.5615998]
[1766170219446,0.05226804,124.24,124.2,0.0515998]
[1766170220349,0.00226804,124.24,124.2,20.9015998]
[1766170220852,0.00226804,124.24,124.2,28.1516998]
[1766170221052,0.00226804,124.24,124.2,20.9015998]
[1766170221354,1.37908357,124.31,124.24,20.85]
[1766170221951,22.33908357,124.31,124.24,20.85]
[1766170222145,22.33908357,124.31,124.26,0.00170347]
[1766170223243,0.05738095,124.3,124.26,0.00170347]
[1766170223451,20.96,124.35,124.26,20.85170347]
[1766170223650,20.96,124.35,124.26,20.85]
[1766170223848,20.96,124.35,124.27,20.85]
[1766170224253,20.96,124.35,124.27,28.096]
[1766170224645,20.96,124.35,124.3,0.05659469]
[1766170225149,28.2018,124.35,124.3,0.05659469]
[1766170225353,20.96,124.34,124.3,0.05659469]
[1766170226253,20.96,124.34,124.25,68.43]
[1766170226440,20.96,124.34,124.26,20.85]
[1766170226851,20.96,124.34,124.27,20.85]
[1766170227258,0.05659469,124.32,124.29,0.05160775]
[1766170227841,20.96,124.36,124.29,20.90160775]
[1766170228044,20.96,124.36,124.29,28.14650775]
[1766170228849,20.96,124.35,124.29,20.90160775]
[1766170229054,24.35356155,124.35,124.29,0.05160775]
[1766170229649,31.59526155,124.35,124.29,0.05160775]
[1766170229855,24.35356155,124.33,124.29,0.05160775]
[1766170230157,24.35356155,124.33,124.24,20.85]
[1766170230349,24.35356155,124.31,124.24,20.85]
[1766170231146,0.05502713,124.29,124.26,0.05562254]
[1766170231348,21.01502713,124.29,124.22,20.85]
[1766170231651,24.40858868,124.29,124.22,20.85]
[1766170231852,24.40858868,124.29,124.21,47.56]
[1766170232059,24.35356155,124.29,124.21,47.56]
[1766170232254,3.39356155,124.27,124.21,47.56]
[1766170232462,0.05839984,124.25,124.23,0.05791322]
[1766170232764,0.05839984,124.25,124.21,47.56]
[1766170233454,21.01839984,124.25,124.21,47.56]
[1766170233759,3.39356155,124.24,124.18,28.1012]
[1766170234060,0.05242421,124.22,124.2,0.06090057]
[1766170235959,68.79,124.27,124.2,21.33090057]
[1766170237059,0.05466894,124.25,124.21,21.27]
[1766170237265,0.05466894,124.25,124.22,0.0538508]
[1766170243167,21.28466894,124.25,124.22,0.0038508]
[1766170244562,0.05466894,124.25,124.22,0.0038508]
[1766170245872,24.67823049,124.25,124.15,21.27]
[1766170246171,112.7311,124.26,124.15,21.27]
[1766170246172,21.23,124.22,124.15,21.27]
[1766170247261,0.05112765,124.2,124.17,0.05429907]
[1766170249664,0.05112765,124.2,124.17,28.57619907]
[1766170251071,21.23,124.24,124.17,28.57619907]
[1766170252063,0.05602379,124.22,124.17,28.57619907]
[1766170253165,21.23,124.27,124.19,21.27]
[1766170253574,21.23,124.27,124.2,7.25]
[1766170254068,0.05895787,124.25,124.22,0.05324524]
[1766170255573,21.23,124.29,124.24,7.2477]
[1766170256463,21.23,124.29,124.25,0.05643344]
[1766170257875,21.23,124.31,124.25,0.05643344]
[1766170258374,21.23,124.31,124.25,7.30363344]
[1766170258874,21.23,124.34,124.28,28.5154]
[1766170259174,21.23,124.34,124.3,0.05225091]
[1766170260371,21.28613001,124.33,124.3,0.00225091]
[1766170260870,21.23,124.36,124.3,21.27225091]
[1766170261075,21.23,124.36,124.3,21.27]
[1766170261274,21.23,124.36,124.3,68.83]
[1766170261865,21.23,124.36,124.32,0.05387182]
[1766170265985,21.23,124.36,124.32,0.00387182]
[1766170267074,20.7,124.35,124.32,0.00387182]
[1766170269078,20.7,124.35,124.27,68.84]
[1766170269276,20.65,124.35,124.27,68.84]
[1766170269979,0.05387182,124.32,124.3,0.00195141]
[1766170270182,20.65,124.33,124.27,68.84]
[1766170270974,0.05084978,124.31,124.29,0.06052356]
[1766170271491,20.65,124.35,124.29,21.36052356]
[1766170271795,20.65,124.37,124.29,21.3]
[1766170272169,20.65,124.37,124.3,7.2443]
[1766170272580,0.05302204,124.35,124.32,0.06017997]
[1766170274788,0.05302204,124.35,124.32,21.36017997]
[1766170274968,20.65,124.39,124.32,21.36017997]
[1766170275169,20.65,124.39,124.33,28.5425]
[1766170275376,20.65,124.39,124.31,112.6813]
[1766170275377,20.65,124.39,124.31,21.3]
[1766170276183,20.65,124.39,124.34,0.05740774]
[1766170277169,20.65,124.37,124.31,21.3]
[1766170278186,0.05740774,124.35,124.33,0.05109981]
[1766170278386,0.05740774,124.35,124.33,0.00109981]
[1766170280292,21.78,124.38,124.33,0.00109981]
[1766170281084,29.0183,124.41,124.33,27.64369981]
[1766170281388,0.05,124.38,124.36,0.05953884]
[1766170282286,21.78,124.41,124.36,0.05953884]
[1766170282588,7.2366,124.44,124.36,20.45953884]
[1766170282589,21.78,124.43,124.36,20.45953884]
[1766170282787,21.78,124.43,124.36,20.4]
[1766170283384,21.78,124.43,124.38,0.05747366]
[1766170286397,29.0171,124.43,124.38,0.05747366]
[1766170286587,21.78,124.42,124.32,67.92]
[1766170287095,21.78,124.4,124.33,7.2426]
[1766170287293,21.78,124.4,124.33,27.6426]
[1766170287799,0.05747366,124.38,124.35,0.05439004]
[1766170290284,21.78,124.43,124.35,20.45439004]
[1766170290598,21.78,124.43,124.35,20.4]
[1766170291403,21.78,124.43,124.38,0.05729844]
[1766170291806,21.78,124.44,124.38,20.45729844]
[1766170292691,112.5355,124.48,124.38,20.45729844]
[1766170292692,21.78,124.49,124.4,20.4]
[1766170292888,21.78,124.49,124.43,0.05206397]
[1766170293099,21.78,124.48,124.38,47.52]